[Event "WTCC-65 2018"]
[Site "Radebeul"]
[Date "2018.07.07"]
[Round "1"]
[White "Schmidt, Bodo"]
[Black "Appelt, Gerd"]
[Result "1-0"]
[ECO "A46"]
[WhiteElo "2344"]
[BlackElo "2024"]
[Annotator "NA"]
[PlyCount "53"]
[EventDate "2018.07.07"]
[EventType "team-tourn"]
[EventCountry "GER"]
[SourceTitle "playchess.com"]
[Source "ChessBase"]
[SourceQuality "1"]
[TimeControl "40/5400+30:1800+30"]

1. d4 {[%emt 0:00:00]} Nf6 {[%emt 0:00:00]} 2. Nf3 {[%emt 0:00:21]} e6 {[%emt 0:00:02]} 3. e3 {[%emt 0:00:02]} b6 {[%emt 0:00:12]} 4. Bd3 {[%emt 0:00:06]} Bb7 {[%emt 0:00:07]} 5. O-O {[%emt 0:00:16]} Be7 {[%emt 0:00:23]} 6. c4 {[%emt 0:00:06]} O-O {[%emt 0:00:23]} 7. Nc3 {[%emt 0:00:06]} d5 {[%emt 0:05:31]} 8. cxd5 {[%emt 0:04:57]} exd5 {[%emt 0:00:16]} 9. b3 {[%emt 0:00:00]} Nbd7 {[%emt 0:01:37]} 10. Bb2 {[%emt 0:00:00]} Re8 {[%emt 0:01:00]} 11. Rc1 {[%emt 0:00:07]} a6 {[%emt 0:04:30]} 12. Ne5 {[%emt 0:06:29]} Bd6 {[%emt 0:11:01]} 13. f4 {[%emt 0:00:51]} Nf8 {[%emt 0:05:33]} 14. Rc2 {[%emt 0:06:12]} Re7 {[%emt 0:10:39]} 15. Qf3 {[%emt 0:00:30]} c5 {[%emt 0:04:23]} 16. g4 {[%emt 0:06:39]} Rc8 {[%emt 0:08:42]} 17. g5 {[%emt 0:02:21]} Bxe5 {[%emt 0:11:36]} 18. fxe5 {[%emt 0:06:40]} Ne4 {[%emt 0:01:04]} 19. Nxe4 {[%emt 0:01:05]} dxe4 20. Bxe4 Bxe4 {[%emt 0:02:13]} 21. Qxe4 {[%emt 0:00:34]} Re6 {[%emt 0:01:53]} 22. h4 {[%emt 0:03:59]} Nd7 {[%emt 0:05:57]} 23. d5 {[%emt 0:12:48]} Rg6 {[%emt 0:00:10]} 24. Rcf2 {[%emt 0:00:50]} Qe8 {[%emt 0:03:59]} 25. Rxf7 {[%emt 0:01:31]} Nf6 {[%emt 0:00:16]} 26. R1xf6 {[%emt 0:06:32]} gxf6 27. e6 {[%emt 0:01:03]} 1-0

[Event "WTCC-65 2018"]
[Site "Radebeul"]
[Date "2018.07.07"]
[Round "1"]
[White "Rotstein, Jefim"]
[Black "Nevednichy, Boris M"]
[Result "1/2-1/2"]
[ECO "A46"]
[WhiteElo "2318"]
[BlackElo "2115"]
[Annotator "NA"]
[PlyCount "118"]
[EventDate "2018.07.07"]
[EventType "team-tourn"]
[EventCountry "GER"]
[SourceTitle "playchess.com"]
[Source "ChessBase"]
[SourceQuality "1"]
[TimeControl "40/5400+30:1800+30"]

1. Nf3 {[%emt 0:00:00]} Nf6 {[%emt 0:00:00]} 2. d4 {[%emt 0:00:00]} e6 {[%emt 0:00:00]} 3. e3 {[%emt 0:00:08]} b6 {[%emt 0:00:16]} 4. Bd3 {[%emt 0:00:11]} Bb7 {[%emt 0:00:21]} 5. O-O {[%emt 0:00:14]} d6 {[%emt 0:00:58]} 6. b3 {[%emt 0:01:41]} g6 {[%emt 0:00:34]} 7. Bb2 {[%emt 0:00:30]} Bg7 {[%emt 0:00:02]} 8. Nbd2 {[%emt 0:00:24]} O-O {[%emt 0:00:27]} 9. c4 {[%emt 0:01:43]} Nbd7 {[%emt 0:02:08]} 10. e4 {[%emt 0:05:40]} c5 {[%emt 0:01:08]} 11. d5 {[%emt 0:01:48]} Re8 {[%emt 0:04:21]} 12. Qc2 {[%emt 0:03:34]} Nh5 {[%emt 0:03:48]} 13. dxe6 {[%emt 0:03:13]} fxe6 {[%emt 0:02:47]} 14. Bxg7 {[%emt 0:00:32]} Nxg7 {[%emt 0:00:37]} 15. Rad1 {[%emt 0:04:53]} e5 {[%emt 0:00:24]} 16. Nb1 {[%emt 0:04:00]} Ne6 {[%emt 0:00:38]} 17. Nc3 {[%emt 0:00:51]} Nd4 {[%emt 0:03:09]} 18. Nxd4 {[%emt 0:00:18]} exd4 {[%emt 0:01:44]} 19. Nd5 {[%emt 0:01:46]} Bxd5 {[%emt 0:01:02]} 20. exd5 {[%emt 0:04:40]} Ne5 {[%emt 0:00:18]} 21. Be2 {[%emt 0:03:01]} Qh4 {[%emt 0:01:48]} 22. h3 {[%emt 0:13:14]} Rf8 {[%emt 0:04:12]} 23. Qd2 {[%emt 0:04:03]} Qf4 {[%emt 0:10:57]} 24. Qxf4 {[%emt 0:02:23]} Rxf4 {[%emt 0:00:02]} 25. g3 {[%emt 0:00:17]} Re4 {[%emt 0:03:17]} 26. Rd2 {[%emt 0:07:22]} Re8 {[%emt 0:04:30]} 27. Kg2 {[%emt 0:01:16]} Kg7 {[%emt 0:05:38]} 28. Bd1 {[%emt 0:06:01]} Nd7 {[%emt 0:04:45]} 29. Bg4 {[%emt 0:02:17]} R8e7 {[%emt 0:03:58]} 30. Rb1 {[%emt 0:02:16]} h5 {[%emt 0:00:29]} 31. Bxd7 {[%emt 0:04:56]} Rxd7 {[%emt 0:00:05]} 32. a3 {[%emt 0:01:14]} Rde7 {[%emt 0:04:33]} 33. b4 {[%emt 0:01:28]} Re1 {[%emt 0:01:55]} 34. Rxe1 {[%emt 0:05:51]} Rxe1 {[%emt 0:00:04]} 35. bxc5 {[%emt 0:00:13]} bxc5 {[%emt 0:00:44]} 36. Kf3 {[%emt 0:04:00]} Ra1 {[%emt 0:06:57]} 37. Rb2 {[%emt 0:04:00]} Rxa3+ {[%emt 0:00:04]} 38. Ke4 {[%emt 0:00:59]} h4 {[%emt 0:03:33]} 39. gxh4 {[%emt 0:01:35]} Rxh3 {[%emt 0:00:56]} 40. Rb7+ {[%emt 0:00:09]} Kf6 {[%emt 0:02:57]} 41. Rxa7 {[%emt 0:33:11]} Rxh4+ {[%emt 0:30:38]} 42. Kd3 {[%emt 0:01:45]} Rh3+ {[%emt 0:00:12]} 43. Ke4 {[%emt 0:00:57]} Rh2 {[%emt 0:07:24]} 44. Rd7 {[%emt 0:00:43]} Rxf2 {[%emt 0:00:13]} 45. Rxd6+ {[%emt 0:00:16]} Kg5 {[%emt 0:01:43]} 46. Rc6 {[%emt 0:00:46]} Rf4+ {[%emt 0:00:26]} 47. Kd3 {[%emt 0:00:12]} Rf3+ {[%emt 0:00:06]} 48. Ke2 {[%emt 0:00:55]} Rc3 {[%emt 0:02:37]} 49. Rxc5 {[%emt 0:00:55]} Kf6 {[%emt 0:04:33]} 50. d6 {[%emt 0:00:00]} Ke6 {[%emt 0:00:00]} 51. Rd5 {[%emt 0:00:00]} Re3+ {[%emt 0:00:00]} 52. Kd2 {[%emt 0:00:00]} Kd7 {[%emt 0:00:00]} 53. Rxd4 {[%emt 0:00:00]} Re8 {[%emt 0:00:00]} 54. Kc3 {[%emt 0:00:00]} Kc6 {[%emt 0:00:00]} 55. d7 {[%emt 0:00:00]} Rd8 {[%emt 0:00:00]} 56. Rg4 {[%emt 0:00:00]} Rxd7 {[%emt 0:00:00]} 57. Rxg6+ {[%emt 0:00:00]} Kc5 {[%emt 0:00:00]} 58. Rg8 {[%emt 0:00:00]} Rd1 {[%emt 0:00:00]} 59. Rc8+ {[%emt 0:00:00]} Kb6 {[%emt 0:00:00]} 1/2-1/2

[Event "WTCC-65 2018"]
[Site "Radebeul"]
[Date "2018.07.07"]
[Round "1"]
[White "Schulze, Ulrich"]
[Black "Meissner, Werner"]
[Result "1-0"]
[ECO "E69"]
[WhiteElo "2313"]
[BlackElo "1746"]
[Annotator "NA"]
[PlyCount "66"]
[EventDate "2018.07.07"]
[EventType "team-tourn"]
[EventCountry "GER"]
[SourceTitle "playchess.com"]
[Source "ChessBase"]
[SourceQuality "1"]
[TimeControl "40/5400+30:1800+30"]

1. d4 {[%emt 0:00:00]} Nf6 {[%emt 0:00:00]} 2. Nf3 {[%emt 0:00:00]} d6 {[%emt 0:00:33]} 3. g3 {[%emt 0:00:25]} g6 {[%emt 0:01:12]} 4. Bg2 {[%emt 0:00:06]} Bg7 {[%emt 0:00:07]} 5. c4 {[%emt 0:00:07]} O-O {[%emt 0:01:05]} 6. Nc3 {[%emt 0:00:15]} Nbd7 {[%emt 0:01:49]} 7. O-O {[%emt 0:00:08]} c6 {[%emt 0:00:44]} 8. e4 {[%emt 0:00:52]} e5 {[%emt 0:01:12]} 9. h3 {[%emt 0:00:11]} Qc7 {[%emt 0:02:10]} 10. Re1 {[%emt 0:00:59]} a5 {[%emt 0:08:57]} 11. b3 {[%emt 0:00:10]} Re8 {[%emt 0:04:20]} 12. Be3 {[%emt 0:03:35]} exd4 {[%emt 0:05:25]} 13. Nxd4 {[%emt 0:00:09]} Nc5 {[%emt 0:00:25]} 14. Qc2 {[%emt 0:00:10]} Ne6 {[%emt 0:11:53]} 15. Nde2 {[%emt 0:01:06]} b5 {[%emt 0:01:00]} 16. cxb5 {[%emt 0:00:43]} Rb8 {[%emt 0:06:30]} 17. bxc6 {[%emt 0:00:49]} Ba6 {[%emt 0:04:37]} 18. Rad1 {[%emt 0:06:10]} Nc5 {[%emt 0:01:26]} 19. Nd5 {[%emt 0:02:35]} Nxd5 {[%emt 0:01:24]} 20. exd5 {[%emt 0:00:07]} Rxe3 {[%emt 0:05:41]} 21. fxe3 {[%emt 0:00:22]} Qe7 {[%emt 0:00:23]} 22. Nf4 {[%emt 0:05:05]} Be5 {[%emt 0:00:28]} 23. Kh2 {[%emt 0:08:00]} a4 {[%emt 0:00:26]} 24. Rb1 {[%emt 0:02:49]} axb3 {[%emt 0:04:30]} 25. axb3 {[%emt 0:00:36]} g5 {[%emt 0:00:18]} 26. b4 {[%emt 0:02:24]} gxf4 {[%emt 0:00:33]} 27. exf4 {[%emt 0:01:51]} Nd3 {[%emt 0:01:34]} 28. fxe5 {[%emt 0:02:36]} Nxe5 {[%emt 0:00:42]} 29. b5 {[%emt 0:01:11]} Bc8 {[%emt 0:07:01]} 30. b6 {[%emt 0:00:53]} Qg5 {[%emt 0:03:22]} 31. b7 {[%emt 0:02:34]} Bxh3 {[%emt 0:00:18]} 32. Rxe5 {[%emt 0:00:34]} Qxe5 {[%emt 0:02:56]} 33. Bxh3 {[%emt 0:00:10]} Qe6 1-0

[Event "WTCC-65 2018"]
[Site "Radebeul"]
[Date "2018.07.07"]
[Round "1"]
[White "Pushkov, Nikolai"]
[Black "Andersson, Finn"]
[Result "1-0"]
[ECO "D41"]
[WhiteElo "2311"]
[BlackElo "1729"]
[Annotator "NA"]
[PlyCount "41"]
[EventDate "2018.07.07"]
[EventType "team-tourn"]
[EventCountry "GER"]
[SourceTitle "playchess.com"]
[Source "ChessBase"]
[SourceQuality "1"]
[TimeControl "40/5400+30:1800+30"]

1. Nf3 {[%emt 0:00:00]} Nf6 {[%emt 0:00:00]} 2. c4 {[%emt 0:00:00]} e6 {[%emt 0:00:00]} 3. d4 {[%emt 0:00:00]} d5 {[%emt 0:00:04]} 4. Nc3 {[%emt 0:00:00]} c5 {[%emt 0:01:18]} 5. cxd5 {[%emt 0:00:11]} Nxd5 {[%emt 0:00:34]} 6. e3 {[%emt 0:00:22]} Nxc3 {[%emt 0:01:59]} 7. bxc3 {[%emt 0:00:03]} cxd4 {[%emt 0:02:10]} 8. exd4 {[%emt 0:00:26]} Qc7 {[%emt 0:02:15]} 9. Bd2 {[%emt 0:00:15]} Be7 {[%emt 0:01:00]} 10. Bd3 {[%emt 0:00:33]} Nd7 {[%emt 0:00:37]} 11. O-O {[%emt 0:00:15]} O-O {[%emt 0:02:27]} 12. Re1 {[%emt 0:00:19]} Nf6 {[%emt 0:08:36]} 13. Ne5 {[%emt 0:03:28]} b6 {[%emt 0:05:23]} 14. Qf3 {[%emt 0:03:25]} Bb7 {[%emt 0:02:27]} 15. Qh3 {[%emt 0:00:15]} Rac8 {[%emt 0:15:38]} 16. Rac1 {[%emt 0:06:07]} Qd8 {[%emt 0:10:59]} 17. Bg5 {[%emt 0:04:00]} g6 {[%emt 0:16:49]} 18. Bh6 {[%emt 0:02:05]} Nd5 {[%emt 0:07:57]} 19. c4 {[%emt 0:01:52]} Nf6 {[%emt 0:00:34]} 20. Bxf8 {[%emt 0:00:25]} Bxf8 {[%emt 0:00:29]} 21. Qe3 1-0

[Event "WTCC-65 2018"]
[Site "Radebeul"]
[Date "2018.07.07"]
[Round "1"]
[White "Berry, Stephen H"]
[Black "Giulian, Philip Maurice"]
[Result "1/2-1/2"]
[ECO "A13"]
[WhiteElo "2298"]
[BlackElo "2149"]
[Annotator "NA"]
[PlyCount "52"]
[EventDate "2018.07.07"]
[EventType "team-tourn"]
[EventCountry "GER"]
[SourceTitle "playchess.com"]
[Source "ChessBase"]
[SourceQuality "1"]
[TimeControl "40/5400+30:1800+30"]

1. Nf3 {[%emt 0:00:00]} d5 {[%emt 0:00:00]} 2. c4 {[%emt 0:00:00]} e6 {[%emt 0:00:00]} 3. g3 {[%emt 0:00:09]} Nf6 {[%emt 0:00:08]} 4. Bg2 {[%emt 0:00:15]} d4 {[%emt 0:00:09]} 5. O-O {[%emt 0:00:17]} c5 {[%emt 0:00:07]} 6. e3 {[%emt 0:01:54]} Nc6 {[%emt 0:00:16]} 7. exd4 {[%emt 0:00:07]} cxd4 {[%emt 0:00:07]} 8. d3 {[%emt 0:00:15]} Bd6 {[%emt 0:00:17]} 9. Bg5 {[%emt 0:01:19]} h6 {[%emt 0:00:15]} 10. Bxf6 {[%emt 0:00:08]} Qxf6 {[%emt 0:00:08]} 11. Nbd2 {[%emt 0:00:08]} Qe7 {[%emt 0:00:18]} 12. a3 {[%emt 0:02:06]} a5 {[%emt 0:00:05]} 13. Rc1 {[%emt 0:02:53]} O-O {[%emt 0:03:08]} 14. Ne4 {[%emt 0:02:25]} Bc7 {[%emt 0:00:33]} 15. c5 {[%emt 0:00:45]} e5 {[%emt 0:02:01]} 16. Re1 {[%emt 0:02:06]} Be6 {[%emt 0:01:00]} 17. Qe2 {[%emt 0:07:18]} Rac8 {[%emt 0:17:23]} 18. h3 {[%emt 0:11:00]} Rfe8 {[%emt 0:02:58]} 19. g4 {[%emt 0:04:23]} f5 {[%emt 0:05:38]} 20. gxf5 {[%emt 0:02:17]} Bxf5 {[%emt 0:00:05]} 21. Nh2 {[%emt 0:03:41]} Rf8 {[%emt 0:11:03]} 22. Ng3 {[%emt 0:04:51]} Be6 {[%emt 0:04:46]} 23. Qh5 {[%emt 0:08:28]} Bf7 {[%emt 0:00:58]} 24. Qg4 {[%emt 0:01:17]} Be6 {[%emt 0:00:11]} 25. Qh5 {[%emt 0:00:03]} Bf7 {[%emt 0:00:24]} 26. Qg4 {[%emt 0:00:07]} Be6 {[%emt 0:00:10]} 1/2-1/2

[Event "WTCC-65 2018"]
[Site "Radebeul"]
[Date "2018.07.07"]
[Round "1"]
[White "Khanukov, Boris"]
[Black "Scovitin, Albert"]
[Result "1/2-1/2"]
[ECO "D45"]
[WhiteElo "2273"]
[BlackElo "2004"]
[Annotator "NA"]
[PlyCount "192"]
[EventDate "2018.07.07"]
[EventType "team-tourn"]
[EventCountry "GER"]
[SourceTitle "playchess.com"]
[Source "ChessBase"]
[SourceQuality "1"]
[TimeControl "40/5400+30:1800+30"]

1. d4 {[%emt 0:00:00]} d5 {[%emt 0:00:00]} 2. c4 {[%emt 0:00:00]} c6 {[%emt 0:00:00]} 3. Nf3 {[%emt 0:00:18]} Nf6 {[%emt 0:00:05]} 4. e3 {[%emt 0:00:36]} a6 {[%emt 0:00:19]} 5. Nc3 {[%emt 0:00:32]} e6 {[%emt 0:01:42]} 6. Bd3 {[%emt 0:02:26]} Nbd7 {[%emt 0:00:23]} 7. O-O {[%emt 0:01:30]} Bd6 {[%emt 0:00:39]} 8. e4 {[%emt 0:01:23]} dxe4 {[%emt 0:00:14]} 9. Nxe4 {[%emt 0:00:04]} Nxe4 {[%emt 0:00:17]} 10. Bxe4 {[%emt 0:00:08]} Nf6 {[%emt 0:00:32]} 11. Bc2 {[%emt 0:00:34]} O-O {[%emt 0:01:59]} 12. Bg5 {[%emt 0:00:36]} Re8 {[%emt 0:02:11]} 13. Qd3 {[%emt 0:00:57]} g6 {[%emt 0:00:14]} 14. Rad1 {[%emt 0:02:06]} Be7 {[%emt 0:02:50]} 15. Ne5 {[%emt 0:03:33]} Nd7 {[%emt 0:06:56]} 16. Bf4 {[%emt 0:02:02]} Nxe5 {[%emt 0:01:37]} 17. Bxe5 {[%emt 0:00:39]} b5 {[%emt 0:03:10]} 18. c5 {[%emt 0:07:37]} Ra7 {[%emt 0:00:23]} 19. Qf3 {[%emt 0:01:09]} Rd7 {[%emt 0:06:52]} 20. Bb3 {[%emt 0:07:09]} Bb7 {[%emt 0:02:50]} 21. Rfe1 {[%emt 0:01:30]} Bf8 {[%emt 0:00:29]} 22. Qg4 {[%emt 0:03:40]} Bg7 {[%emt 0:01:31]} 23. h4 {[%emt 0:02:05]} h5 {[%emt 0:09:17]} 24. Qf4 {[%emt 0:02:31]} Kh7 {[%emt 0:00:59]} 25. g3 {[%emt 0:08:11]} Qe7 {[%emt 0:00:26]} 26. Bc2 {[%emt 0:05:10]} Red8 {[%emt 0:00:45]} 27. Qf3 {[%emt 0:00:58]} Kg8 {[%emt 0:00:24]} 28. b4 {[%emt 0:03:01]} Bxe5 {[%emt 0:02:27]} 29. dxe5 {[%emt 0:00:12]} Rd4 {[%emt 0:00:36]} 30. a3 {[%emt 0:01:44]} a5 {[%emt 0:10:08]} 31. Qe3 {[%emt 0:01:35]} Rxd1 {[%emt 0:07:35]} 32. Rxd1 {[%emt 0:00:19]} Rxd1+ {[%emt 0:00:04]} 33. Bxd1 {[%emt 0:00:17]} axb4 {[%emt 0:01:56]} 34. axb4 {[%emt 0:00:09]} Qd8 {[%emt 0:00:10]} 35. Bf3 {[%emt 0:00:21]} Kg7 {[%emt 0:00:11]} 36. Kg2 {[%emt 0:01:32]} Kh7 {[%emt 0:08:11]} 37. Kh3 {[%emt 0:01:06]} Kg7 {[%emt 0:00:16]} 38. Kg2 {[%emt 0:04:33]} Kh7 {[%emt 0:00:17]} 39. Kf1 {[%emt 0:00:22]} Kg7 {[%emt 0:00:12]} 40. Ke2 {[%emt 0:01:35]} Kh7 {[%emt 0:00:41]} 41. Be4 {[%emt 0:31:15]} Kg7 {[%emt 0:30:24]} 42. Qc3 {[%emt 0:02:08]} Kh6 {[%emt 0:01:26]} 43. Qa1 {[%emt 0:02:29]} Kg7 {[%emt 0:00:37]} 44. Ke3 {[%emt 0:01:56]} Kh6 {[%emt 0:00:27]} 45. Bf3 {[%emt 0:00:48]} Kg7 {[%emt 0:00:16]} 46. Be4 {[%emt 0:05:52]} Kh6 {[%emt 0:00:41]} 47. f4 {[%emt 0:09:02]} Kg7 {[%emt 0:00:18]} 48. Bf3 {[%emt 0:00:24]} Kh7 {[%emt 0:00:21]} 49. Qa5 {[%emt 0:02:33]} Qc8 {[%emt 0:00:27]} 50. Qa7 {[%emt 0:03:55]} Qa8 {[%emt 0:00:10]} 51. Qa5 {[%emt 0:01:02]} Qc8 {[%emt 0:00:06]} 52. Be4 {[%emt 0:00:27]} Kh6 {[%emt 0:00:21]} 53. Qb6 {[%emt 0:04:04]} Kg7 {[%emt 0:00:14]} 54. Qa5 {[%emt 0:03:33]} Qd7 {[%emt 0:01:25]} 55. Bf3 {[%emt 0:01:11]} Kh6 {[%emt 0:01:24]} 56. Qa2 {[%emt 0:00:41]} Kg7 {[%emt 0:00:21]} 57. g4 {[%emt 0:00:45]} hxg4 {[%emt 0:00:26]} 58. Bxg4 {[%emt 0:00:09]} Qd5 {[%emt 0:01:06]} 59. Qxd5 {[%emt 0:00:19]} cxd5 {[%emt 0:00:27]} 60. h5 {[%emt 0:00:29]} Bc6 {[%emt 0:00:29]} 61. Be2 {[%emt 0:00:00]} Kh6 {[%emt 0:00:00]} 62. hxg6 {[%emt 0:00:00]} Kxg6 {[%emt 0:00:00]} 63. Bd3+ {[%emt 0:00:00]} Kh5 {[%emt 0:00:00]} 64. f5 {[%emt 0:00:00]} Kg5 {[%emt 0:00:00]} 65. f6 {[%emt 0:00:00]} Kh6 {[%emt 0:00:00]} 66. Kf4 {[%emt 0:00:00]} Be8 {[%emt 0:00:00]} 67. Ke3 {[%emt 0:00:00]} Bc6 {[%emt 0:00:00]} 68. Kd4 {[%emt 0:00:00]} Kg5 {[%emt 0:00:00]} 69. Be2 {[%emt 0:00:00]} Kg6 {[%emt 0:00:00]} 70. Bg4 {[%emt 0:00:00]} Kh6 {[%emt 0:00:00]} 71. Ke3 {[%emt 0:00:00]} Kg6 {[%emt 0:00:00]} 72. Kf4 {[%emt 0:00:00]} Kh6 {[%emt 0:00:00]} 73. Bf3 {[%emt 0:00:00]} Kg6 {[%emt 0:00:00]} 74. Kg4 {[%emt 0:00:00]} Kh6 {[%emt 0:00:00]} 75. Kh4 {[%emt 0:00:00]} Kh7 {[%emt 0:00:00]} 76. Kg5 {[%emt 0:00:00]} Kh8 {[%emt 0:00:00]} 77. Be2 {[%emt 0:00:00]} Kh7 {[%emt 0:00:00]} 78. Bd3+ {[%emt 0:00:00]} Kg8 {[%emt 0:00:00]} 79. Kh6 {[%emt 0:00:03]} Kf8 {[%emt 0:00:00]} 80. Bh7 {[%emt 0:01:30]} Bd7 {[%emt 0:00:00]} 81. Bd3 {[%emt 0:01:23]} Bc6 {[%emt 0:00:00]} 82. Kh7 {[%emt 0:00:11]} Bd7 {[%emt 0:00:00]} 83. Kh6 {[%emt 0:02:08]} Bc6 {[%emt 0:00:00]} 84. Bh7 {[%emt 0:00:33]} Bd7 {[%emt 0:00:00]} 85. Kg5 {[%emt 0:00:20]} Bc6 {[%emt 0:00:00]} 86. Kf4 {[%emt 0:00:13]} Ke8 {[%emt 0:00:00]} 87. Kg5 {[%emt 0:02:47]} Kf8 {[%emt 0:00:00]} 88. Kh6 {[%emt 0:00:07]} Bd7 {[%emt 0:00:00]} 89. Kg5 {[%emt 0:02:02]} Bc6 {[%emt 0:00:00]} 90. Kf4 {[%emt 0:00:18]} Ke8 {[%emt 0:00:00]} 91. Bd3 {[%emt 0:00:24]} Kf8 {[%emt 0:00:00]} 92. Be2 {[%emt 0:00:18]} Kg8 {[%emt 0:00:00]} 93. Ke3 {[%emt 0:00:57]} Kh7 {[%emt 0:00:00]} 94. Bh5 {[%emt 0:00:19]} Kg8 {[%emt 0:00:00]} 95. Bg4 {[%emt 0:00:33]} Kh7 {[%emt 0:00:00]} 96. Kd4 {[%emt 0:00:30]} Kg8 {[%emt 0:00:00] Ke4} 1/2-1/2

[Event "WTCC-65 2018"]
[Site "Radebeul"]
[Date "2018.07.07"]
[Round "1"]
[White "Ackermann, Hans Werner"]
[Black "Wong, Ngiam Yee"]
[Result "0-1"]
[ECO "A04"]
[WhiteElo "2267"]
[BlackElo "2013"]
[Annotator "ChessBase"]
[PlyCount "109"]
[EventDate "2018.07.07"]
[EventType "team-tourn"]
[EventCountry "GER"]
[SourceTitle "playchess.com"]
[Source "ChessBase"]
[SourceQuality "1"]
[TimeControl "40/5400+30:1800+30"]

1. Nf3 {[%emt 0:00:00]} g6 {[%emt 0:00:12]} 2. g3 {[%emt 0:00:14]} Bg7 {[%emt 0:00:10]} 3. Bg2 {[%emt 0:00:05]} e5 {[%emt 0:00:20]} 4. d3 {[%emt 0:02:05]} Ne7 {[%emt 0:01:47]} 5. e4 {[%emt 0:02:43]} d5 {[%emt 0:02:36]} 6. exd5 {[%emt 0:03:32]} Nxd5 {[%emt 0:00:14]} 7. O-O {[%emt 0:01:35]} O-O {[%emt 0:00:16]} 8. Bg5 {[%emt 0:02:46]} f6 {[%emt 0:01:18]} 9. Bd2 {[%emt 0:03:04]} Nc6 {[%emt 0:01:26]} 10. Nc3 {[%emt 0:01:07]} Be6 {[%emt 0:01:38]} 11. Re1 {[%emt 0:06:39]} Qd7 {[%emt 0:03:53]} 12. Qc1 {[%emt 0:13:46]} Rae8 {[%emt 0:02:16]} 13. a3 {[%emt 0:04:09]} b6 {[%emt 0:07:08]} 14. Ne2 {[%emt 0:09:51]} Bg4 {[%emt 0:07:24]} 15. Nc3 {[%emt 0:10:13]} Nxc3 {[%emt 0:08:07]} 16. bxc3 {[%emt 0:02:37]} Nd8 {[%emt 0:04:46]} 17. h4 {[%emt 0:02:58]} c5 {[%emt 0:02:22]} 18. Nh2 {[%emt 0:03:49]} Be6 {[%emt 0:05:10]} 19. a4 {[%emt 0:02:57]} Nc6 {[%emt 0:01:59]} 20. Ra3 {[%emt 0:05:15]} c4 {[%emt 0:02:44]} 21. Be3 {[%emt 0:03:00]} Na5 {[%emt 0:04:14]} 22. d4 {[%emt 0:01:01]} Bd5 {[%emt 0:00:35]} 23. Rd1 {[%emt 0:03:05]} Bxg2 {[%emt 0:01:58]} 24. Kxg2 {[%emt 0:00:04]} Qd5+ {[%emt 0:00:21]} 25. Kg1 {[%emt 0:00:09]} e4 {[%emt 0:00:31]} 26. Ra1 {[%emt 0:01:00]} Nb7 {[%emt 0:08:24]} 27. Nf1 {[%emt 0:02:17]} Rc8 {[%emt 0:04:48]} 28. Re1 {[%emt 0:01:02]} Rfe8 {[%emt 0:01:29]} 29. Qd2 {[%emt 0:01:23]} h5 {[%emt 0:01:16]} 30. Reb1 {[%emt 0:01:12]} Kh7 {[%emt 0:02:52]} 31. Bf4 {[%emt 0:01:27]} Qd8 {[%emt 0:04:01]} 32. Qe2 {[%emt 0:03:08]} Bh6 {[%emt 0:02:02]} 33. Bxh6 {[%emt 0:00:38]} Kxh6 {[%emt 0:00:02]} 34. Ne3 {[%emt 0:00:26]} Nd6 {[%emt 0:00:44]} 35. Rb4 {[%emt 0:00:28]} f5 {[%emt 0:03:27]} 36. Ng2 {[%emt 0:00:26]} e3 {[%emt 0:02:40]} 37. fxe3 {[%emt 0:01:45]} Re4 {[%emt 0:03:36]} 38. Rf1 {[%emt 0:02:49]} Rg4 {[%emt 0:00:28]} 39. Rf4 {[%emt 0:01:32]} Rxg3 {[%emt 0:00:54]} 40. Kh2 {[%emt 0:00:31]} Rg4 {[%emt 0:00:28]} 41. Rxg4 {[%emt 0:30:33]} hxg4 {[%emt 0:34:25]} 42. Qf2 {[%emt 0:00:11]} Qc7 {[%emt 0:00:00]} 43. Qf4+ {[%emt 0:00:00]} Kh7 {[%emt 0:00:00]} 44. Kg1 {[%emt 0:00:00]} Ne4 {[%emt 0:00:00]} 45. a5 {[%emt 0:00:00]} bxa5 {[%emt 0:00:00]} 46. Qxc7+ {[%emt 0:00:00]} Rxc7 {[%emt 0:00:00]} 47. Ra4 {[%emt 0:00:00]} Rb7 {[%emt 0:00:00]} 48. Nf4 {[%emt 0:00:00]} Rb1+ {[%emt 0:00:00]} 49. Kg2 {[%emt 0:00:00]} Rb2 {[%emt 0:00:00]} 50. Rxa5 {[%emt 0:00:00]} Rxc2+ {[%emt 0:00:00]} 51. Kg1 {[%emt 0:00:00]} Nd2 {[%emt 0:00:00]} 52. Rxa7+ {[%emt 0:00:00]} Kh6 {[%emt 0:00:00]} 53. Kf2 {[%emt 0:00:00]} Ne4+ {[%emt 0:00:00]} 54. Kg1 {[%emt 0:00:00]} Rxc3 {[%emt 0:00:00]} 55. Ra6 {[%emt 0:07:50]} 0-1

[Event "WTCC-65 2018"]
[Site "Radebeul"]
[Date "2018.07.07"]
[Round "1"]
[White "Giffard, Nicolas"]
[Black "Schwier, Manfred"]
[Result "1-0"]
[ECO "D11"]
[WhiteElo "2260"]
[BlackElo "2043"]
[Annotator "NA"]
[PlyCount "69"]
[EventDate "2018.07.07"]
[EventType "team-tourn"]
[EventCountry "GER"]
[SourceTitle "playchess.com"]
[Source "ChessBase"]
[SourceQuality "1"]
[TimeControl "40/5400+30:1800+30"]

1. d4 {[%emt 0:00:00]} d5 {[%emt 0:00:00]} 2. c4 {[%emt 0:00:11]} c6 {[%emt 0:00:00]} 3. e3 {[%emt 0:00:36]} Nf6 {[%emt 0:00:33]} 4. Nf3 {[%emt 0:00:25]} Bg4 {[%emt 0:00:43]} 5. h3 {[%emt 0:01:24]} Bh5 {[%emt 0:00:46]} 6. Nc3 {[%emt 0:01:02]} e6 {[%emt 0:00:31]} 7. g4 {[%emt 0:04:39]} Bg6 {[%emt 0:00:12]} 8. Ne5 {[%emt 0:00:09]} Nbd7 {[%emt 0:00:38]} 9. Nxg6 {[%emt 0:01:53]} hxg6 {[%emt 0:00:21]} 10. Qb3 {[%emt 0:04:08]} b6 {[%emt 0:08:34]} 11. Bg2 {[%emt 0:00:37]} Bd6 {[%emt 0:01:34]} 12. Bd2 {[%emt 0:02:23]} Rc8 {[%emt 0:02:44]} 13. O-O-O {[%emt 0:04:47]} a5 {[%emt 0:03:18]} 14. Kb1 {[%emt 0:01:55]} dxc4 15. Qxc4 {[%emt 0:04:01]} b5 {[%emt 0:05:24]} 16. Qd3 Nb6 {[%emt 0:03:16]} 17. e4 {[%emt 0:01:46]} Bb4 {[%emt 0:04:02]} 18. Bc1 {[%emt 0:05:10]} Qd7 {[%emt 0:06:59]} 19. f4 {[%emt 0:07:08]} a4 {[%emt 0:07:22]} 20. Rhf1 {[%emt 0:00:36]} Rd8 {[%emt 0:01:26]} 21. Qc2 {[%emt 0:03:41]} Rc8 {[%emt 0:04:52]} 22. f5 {[%emt 0:02:48]} gxf5 {[%emt 0:00:59]} 23. gxf5 {[%emt 0:00:09]} exf5 {[%emt 0:01:21]} 24. Rxf5 {[%emt 0:00:11]} Rh5 {[%emt 0:02:14]} 25. Rxh5 {[%emt 0:02:32]} Nxh5 {[%emt 0:00:02]} 26. Qd3 {[%emt 0:06:15]} Rd8 {[%emt 0:04:18]} 27. Bf3 {[%emt 0:03:21]} Nf6 {[%emt 0:21:53]} 28. e5 {[%emt 0:02:36]} Nfd5 {[%emt 0:01:51]} 29. Bg4 {[%emt 0:00:17]} Qe7 {[%emt 0:02:40]} 30. Ne4 {[%emt 0:01:54]} Qf8 {[%emt 0:01:01]} 31. Bg5 Nc4 {[%emt 0:00:07]} 32. Bxd8 {[%emt 0:02:46]} Kxd8 {[%emt 0:01:02]} 33. Rc1 {[%emt 0:01:53]} f5 {[%emt 0:02:07]} 34. Ng5 {[%emt 0:00:16]} Qe7 35. Qxf5 1-0